fUST/lending_fUST_20250627
["ID","MTS","AMOUNT","RATE_DAILY","PERIOD"]
[367991087,1750985438936,-258.13447406,0.00019646,2]
[367991088,1750985438944,-500.0,0.00019646,2]
[367991089,1750985438954,-460.0,0.00019646,2]
[367991090,1750985438964,-460.0,0.00019646,2]
[367991091,1750985438973,-460.0,0.00019646,2]
[367991092,1750985438982,-460.0,0.00019646,2]
[367991093,1750985438991,-460.0,0.00019646,2]
[367991094,1750985439001,-460.0,0.00019646,2]
[367991095,1750985439011,-460.0,0.00019646,2]
[367991096,1750985439020,-460.0,0.00019646,2]
[367991097,1750985439029,-551.7,0.00019646,2]
[367991098,1750985439039,-460.0,0.00019646,2]
[367991099,1750985439048,-460.0,0.00019646,2]
[367991100,1750985439057,-460.0,0.00019646,2]
[367991101,1750985439066,-460.0,0.00019646,2]
[367991102,1750985439075,-873.68,0.00019646,2]
[367991103,1750985439085,-277.67591368,0.00019646,2]
[367991104,1750985439094,-873.68,0.00019646,2]
[367991105,1750985439103,-873.68,0.00019646,2]
[367991106,1750985439112,-873.68,0.00019646,2]
[367991107,1750985439121,-873.68,0.00019646,2]
[367991108,1750985439130,-460.0,0.00019646,2]
[367991109,1750985439139,-460.0,0.00019646,2]
[367991110,1750985439148,-1038.4,0.00019646,2]
[367991111,1750985439158,-152.81326551,0.00019646,2]
[367991112,1750985439169,-460.0,0.00019646,2]
[367991113,1750985439178,-460.0,0.00019646,2]
[367991114,1750985439187,-460.0,0.00019646,2]
[367991115,1750985439197,-460.0,0.00019646,2]
[367991116,1750985439206,-533.46,0.00019646,2]
[367991117,1750985439215,-460.0,0.00019646,2]
[367991118,1750985439225,-460.0,0.00019646,2]
[367991119,1750985439234,-460.0,0.00019646,2]
[367991120,1750985439244,-460.0,0.00019646,2]
[367991121,1750985439253,-460.0,0.00019646,2]
[367991122,1750985439262,-460.0,0.00019646,2]
[367991123,1750985439271,-460.0,0.00019646,2]
[367991124,1750985439281,-460.0,0.00019646,2]
[367991125,1750985439290,-460.0,0.00019646,2]
[367991126,1750985439299,-460.0,0.00019646,2]
[367991127,1750985439309,-460.0,0.00019646,2]
[367991128,1750985439318,-200.0,0.00019646,2]
[367991129,1750985439327,-460.0,0.00019646,2]
[367991130,1750985439337,-460.0,0.00019646,2]
[367991131,1750985439346,-500.82241896,0.00019646,2]
[367991132,1750985439355,-460.0,0.00019646,2]
[367991133,1750985439365,-460.0,0.00019646,2]
[367991134,1750985439375,-460.0,0.00019646,2]
[367991135,1750985439384,-460.0,0.00019646,2]
[367991136,1750985439394,-460.0,0.00019647,2]
[367991137,1750985439403,-420.0,0.00019647,2]
[367991138,1750985439413,-460.0,0.00019647,2]
[367991139,1750985439423,-214.69554877,0.00019647,2]
[367991140,1750985439432,-521.29,0.00019647,2]
[367991141,1750985439442,-460.0,0.00019647,2]
[367991142,1750985439451,-460.0,0.00019647,2]
[367991143,1750985439460,-460.0,0.00019647,2]
[367991144,1750985439470,-460.0,0.00019647,2]
[367991145,1750985439479,-460.0,0.00019647,2]
[367991146,1750985439489,-460.0,0.00019647,2]
[367991147,1750985439498,-460.0,0.00019647,2]
[367991148,1750985439507,-615.81,0.00019647,2]
[367991149,1750985439517,-6377.11,0.00019647,2]
[367991150,1750985439526,-605.53,0.00019647,2]
[367991151,1750985439536,-1340.26,0.00019647,2]
[367991152,1750985439545,-460.0,0.00019647,2]
[367991153,1750985439554,-460.0,0.00019647,2]
[367991154,1750985439564,-460.0,0.00019647,2]
[367991155,1750985439573,-460.0,0.00019647,2]
[367991156,1750985439583,-534.1,0.00019647,2]
[367991157,1750985439592,-460.0,0.00019647,2]
[367991158,1750985439602,-2161.84,0.00019647,2]
[367991159,1750985439611,-884.85,0.00019647,2]
[367991160,1750985439622,-1202.58,0.00019647,2]
[367991161,1750985439631,-749.5,0.00019647,2]
[367991162,1750985439640,-481.04,0.00019647,2]
[367991163,1750985439650,-1182.79,0.00019647,2]
[367991164,1750985439659,-463.79,0.00019647,2]
[367991165,1750985439669,-2742.58,0.00019647,2]
[367991166,1750985439679,-1047.15,0.00019647,2]
[367991167,1750985439689,-460.0,0.00019647,2]
[367991168,1750985439698,-500.0,0.00019648,2]
[367991169,1750985439708,-460.0,0.00019648,2]
[367991170,1750985439718,-279.01975455,0.00019648,2]
[367991171,1750985439728,-460.0,0.00019648,2]
[367991172,1750985439738,-460.0,0.00019648,2]
[367991173,1750985439747,-460.0,0.00019648,2]
[367991174,1750985439766,-460.0,0.00019648,2]
[367991175,1750985439778,-460.0,0.00019648,2]
[367991177,1750985439789,-873.68,0.00019648,2]
[367991179,1750985439798,-873.68,0.00019648,2]
[367991181,1750985439808,-460.0,0.00019649,2]
[367991183,1750985439817,-460.0,0.00019649,2]
[367991185,1750985439827,-460.0,0.00019649,2]
[367991187,1750985439840,-460.0,0.00019649,2]
[367991189,1750985439852,-500.0,0.00019649,2]
[367991191,1750985439861,-461.2571518,0.00019649,2]
[367991193,1750985439871,-535.82,0.00019649,2]
[367991195,1750985439881,-505.03907555,0.00019649,2]
[367991197,1750985439891,-460.54260073,0.00019649,2]
[367991199,1750985439900,-1308.61,0.00019649,2]
[367991201,1750985439910,-460.0,0.00019649,2]
[367991203,1750985439923,-693.75,0.00019649,2]
[367991204,1750985439933,-563.93,0.00019649,2]
[367991205,1750985439942,-1933.82,0.00019649,2]
[367991206,1750985439952,-1747.35,0.00019649,2]
[367991207,1750985439962,-460.0,0.00019649,2]
[367991208,1750985439972,-460.0,0.00019649,2]
[367991210,1750985439982,-473.53420988,0.00019649,2]
[367991212,1750985439992,-2047.33,0.00019649,2]
[367991214,1750985440002,-460.0,0.00019649,2]
[367991215,1750985440013,-177.798,0.00019741,2]
[367991216,1750985440023,-160.0,0.000198,3]
[367991217,1750985440034,-160.0,0.000198,3]
[367991218,1750985440044,-160.0,0.000198,3]
[367991220,1750985440054,-401.12400828,0.00019891,2]
[367991222,1750985440064,-9822.98156481,0.000199,2]
[367991223,1750985440075,-460.0,0.00019915,2]
[367991224,1750985440085,-460.0,0.00019915,2]
[367991225,1750985440095,-460.0,0.00019915,2]
[367991226,1750985440105,-460.0,0.00019915,2]
[367991227,1750985440115,-460.0,0.00019915,2]
[367991228,1750985440133,-476.49,0.00019915,2]
[367991229,1750985440152,-460.0,0.00019915,2]
[367991230,1750985440168,-460.0,0.00019915,2]
[367991231,1750985440183,-266.73850832,0.00019915,2]
[367991232,1750985440196,-460.0,0.00019916,2]
[367991233,1750985440212,-460.0,0.00019916,2]
[367991234,1750985440227,-460.0,0.00019916,2]
[367991235,1750985440241,-460.0,0.00019916,2]
[367991236,1750985440255,-484.57,0.00019916,2]
[367991237,1750985440269,-496.21,0.00019916,2]
[367991238,1750985440285,-739.56,0.00019916,2]
[367991239,1750985440301,-2888.24,0.00019916,2]
[367991240,1750985440317,-2989.15,0.00019916,2]
[367991241,1750985440331,-460.0,0.00019916,2]
[367991242,1750985440347,-3488.98,0.00019916,2]
[367991243,1750985440362,-470.26,0.00019916,2]
[367991244,1750985440375,-460.0,0.00019917,2]
[367991245,1750985440389,-460.0,0.00019917,2]
[367991246,1750985440401,-460.0,0.00019917,2]
[367991247,1750985440413,-460.0,0.00019917,2]
[367991249,1750985440424,-460.0,0.00019917,2]
[367991251,1750985440436,-460.0,0.00019917,2]
[367991253,1750985440448,-460.0,0.00019917,2]
[367991256,1750985440461,-461.99404136,0.00019917,2]
[367991258,1750985440474,-337.33769466,0.00019917,2]
[367991260,1750985440487,-258.81310148,0.00019917,2]
[367991263,1750985440502,-460.0,0.00019917,2]
[367991264,1750985440516,-460.0,0.00019917,2]
[367991265,1750985440529,-460.0,0.00019917,2]
[367991266,1750985440543,-460.0,0.00019917,2]
[367991267,1750985440554,-460.0,0.00019917,2]
[367991268,1750985440564,-460.0,0.00019917,2]
[367991269,1750985440575,-460.0,0.00019917,2]
[367991270,1750985440587,-467.00000007,0.00019917,2]
[367991271,1750985440600,-162.48177066,0.00019917,2]
[367991272,1750985440614,-460.0,0.00019917,2]
[367991274,1750985440628,-477.33,0.00019917,2]
[367991276,1750985440638,-460.0,0.00019917,2]
[367991278,1750985440650,-460.0,0.00019917,2]
[367991280,1750985440664,-460.0,0.00019917,2]
[367991283,1750985440677,-460.0,0.00019917,2]
[367991285,1750985440688,-320.897502,0.00019917,2]
[367991287,1750985440699,-460.0,0.00019917,2]
[367991289,1750985440710,-460.0,0.00019917,2]
[367991291,1750985440721,-460.0,0.00019917,2]
[367991293,1750985440732,-460.0,0.00019917,2]
[367991296,1750985440743,-460.0,0.00019917,2]
[367991298,1750985440756,-500.0,0.00019917,2]
[367991300,1750985440772,-500.0,0.00019917,2]
[367991303,1750985440785,-356.58472296,0.00019917,2]
[367991307,1750985440806,-500.0,0.00019917,2]
[367991310,1750985440819,-500.0,0.00019917,2]
[367991312,1750985440836,-500.0,0.00019917,2]
[367991314,1750985440848,-500.0,0.00019917,2]
[367991318,1750985440861,-500.0,0.00019917,2]
[367991320,1750985440873,-500.0,0.00019917,2]
[367991322,1750985440888,-500.0,0.00019917,2]
[367991325,1750985440900,-286.12728823,0.00019917,2]
[367991327,1750985440913,-460.0,0.00019917,2]
[367991329,1750985440925,-500.0,0.00019917,2]
[367991332,1750985440937,-500.0,0.00019917,2]
[367991334,1750985440949,-460.0,0.00019918,2]
[367991336,1750985440961,-154.46,0.00019918,2]
[367991338,1750985440972,-460.0,0.00019918,2]
[367991341,1750985440984,-515.4295518,0.00019918,2]
[367991343,1750985440996,-460.0,0.00019918,2]
[367991345,1750985441008,-674.66,0.00019918,2]
[367991348,1750985441020,-2355.03,0.00019918,2]
[367991350,1750985441031,-398.57137614,0.00019918,2]
[367991352,1750985441043,-1040.41,0.00019918,2]
[367991354,1750985441055,-460.0,0.00019918,2]
[367991357,1750985441067,-2625.1,0.00019918,2]
[367991359,1750985441078,-2936.96,0.00019918,2]
[367991361,1750985441090,-460.0,0.00019918,2]
[367991363,1750985441101,-661.24,0.00019918,2]
[367991366,1750985441113,-277.06961202,0.00019918,2]
[367991368,1750985441124,-1924.14,0.00019918,2]
[367991369,1750985441135,-460.0,0.00019918,2]
[367991370,1750985441146,-760.31,0.00019918,2]
[367991371,1750985441157,-911.06,0.00019918,2]
[367991372,1750985441169,-865.11,0.00019918,2]
[367991373,1750985441180,-859.44,0.00019918,2]
[367991374,1750985441192,-2585.81,0.00019918,2]
[367991375,1750985441203,-460.0,0.00019918,2]
[367991376,1750985441215,-460.0,0.00019918,2]
[367991377,1750985441226,-460.0,0.00019918,2]
[367991378,1750985441238,-742.21,0.00019918,2]
[367991379,1750985441250,-460.0,0.00019918,2]
[367991380,1750985441261,-1135.56,0.00019918,2]
[367991381,1750985441272,-746.24,0.00019918,2]
[367991382,1750985441284,-460.0,0.00019918,2]
[367991383,1750985441295,-460.0,0.00019918,2]
[367991384,1750985441307,-460.0,0.00019918,2]
[367991385,1750985441319,-460.0,0.00019918,2]
[367991386,1750985441331,-460.0,0.00019919,2]
[367991387,1750985441343,-460.0,0.00019919,2]
[367991388,1750985441355,-460.0,0.00019919,2]
[367991390,1750985441368,-460.0,0.00019919,2]
[367991392,1750985441380,-460.0,0.00019919,2]
[367991393,1750985441391,-460.0,0.00019919,2]
[367991394,1750985441404,-458.81128959,0.00019919,2]
[367991395,1750985441416,-639.43,0.00019919,2]
[367991396,1750985441428,-460.0,0.00019919,2]
[367991397,1750985441439,-506.47,0.00019919,2]
[367991398,1750985441450,-460.0,0.00019919,2]
[367991399,1750985441462,-460.0,0.00019919,2]
[367991400,1750985441473,-460.0,0.00019919,2]
[367991401,1750985441485,-425.27777638,0.00019919,2]
[367991402,1750985441496,-460.0,0.00019919,2]
[367991403,1750985441508,-460.0,0.00019919,2]
[367991404,1750985441519,-460.0,0.00019919,2]
[367991405,1750985441530,-460.0,0.00019919,2]
[367991406,1750985441542,-460.0,0.00019919,2]
[367991407,1750985441553,-460.0,0.00019919,2]
[367991408,1750985441565,-556.07,0.00019919,2]
[367991409,1750985441576,-460.0,0.00019919,2]
[367991410,1750985441588,-460.0,0.00019919,2]
[367991411,1750985441599,-460.0,0.00019919,2]
[367991412,1750985441611,-472.22,0.00019919,2]
[367991413,1750985441622,-460.0,0.00019919,2]
[367991414,1750985441634,-460.0,0.00019919,2]
[367991415,1750985441646,-460.0,0.00019919,2]
[367991416,1750985441658,-460.0,0.00019919,2]
[367991417,1750985441670,-500.0,0.00019919,2]
[367991418,1750985441680,-460.0,0.00019919,2]
[367991419,1750985441689,-832.88,0.00019919,2]
[367991420,1750985441699,-531.59,0.00019919,2]
[367991421,1750985441709,-422.61235914,0.00019919,2]
[367991422,1750985441719,-904.59,0.00019919,2]
[367991423,1750985441728,-1041.25,0.00019919,2]
[367991424,1750985441738,-636.67,0.00019919,2]
[367991425,1750985441748,-719.61,0.00019919,2]
[367991426,1750985441758,-460.0,0.00019919,2]
[367991427,1750985441769,-1520.21,0.00019919,2]
[367991428,1750985441779,-486.19,0.00019919,2]
[367991429,1750985441789,-952.51,0.00019919,2]
[367991430,1750985441799,-314.61656935,0.00019919,2]
[367991431,1750985441808,-460.0,0.00019919,2]
[367991432,1750985441817,-177.35874871,0.00019919,2]
[367991433,1750985441827,-743.46,0.00019919,2]
[367991434,1750985442069,-737.47,0.00019919,2]
[367991435,1750985442086,-905.43,0.00019919,2]
[367991436,1750985442095,-460.0,0.00019919,2]
[367991437,1750985442105,-460.0,0.00019919,2]
[367991438,1750985442114,-460.0,0.00019919,2]
[367991439,1750985442123,-234.55542494,0.00019919,2]
[367991440,1750985442133,-668.6,0.00019919,2]
[367991441,1750985442142,-460.0,0.00019919,2]
[367991442,1750985442151,-847.36,0.00019919,2]
[367991443,1750985442161,-630.78,0.00019919,2]
[367991444,1750985442170,-460.0,0.00019919,2]
[367991445,1750985442179,-1361.83,0.00019919,2]
[367991446,1750985442188,-460.0,0.00019919,2]
[367991447,1750985442197,-460.0,0.00019919,2]
[367991448,1750985442206,-460.0,0.0001992,2]
[367991449,1750985442215,-460.0,0.0001992,2]
[367991450,1750985442224,-460.0,0.0001992,2]
[367991451,1750985442233,-460.0,0.0001992,2]
[367991452,1750985442243,-460.0,0.0001992,2]
[367991453,1750985442252,-460.0,0.0001992,2]
[367991454,1750985442261,-502.89,0.0001992,2]
[367991455,1750985442270,-460.0,0.0001992,2]
[367991456,1750985442279,-460.0,0.0001992,2]
[367991457,1750985442288,-460.0,0.0001992,2]
[367991458,1750985442297,-460.0,0.0001992,2]
[367991459,1750985442306,-460.0,0.0001992,2]
[367991460,1750985442315,-460.0,0.0001992,2]
[367991461,1750985442325,-460.0,0.0001992,2]
[367991462,1750985442335,-460.0,0.0001992,2]
[367991463,1750985442343,-460.0,0.0001992,2]
[367991464,1750985442353,-551.7,0.0001992,2]
[367991465,1750985442362,-460.0,0.0001992,2]
[367991466,1750985442371,-460.0,0.0001992,2]
[367991467,1750985442380,-236.28926166,0.0001992,2]
[367991468,1750985442389,-460.0,0.0001992,2]
[367991469,1750985442398,-873.68,0.0001992,2]
[367991470,1750985442408,-460.0,0.0001992,2]
[367991471,1750985442417,-1038.4,0.0001992,2]
[367991472,1750985442426,-460.0,0.0001992,2]
[367991473,1750985442435,-460.0,0.0001992,2]
[367991474,1750985442445,-460.0,0.0001992,2]
[367991475,1750985442454,-533.46,0.0001992,2]
[367991476,1750985442464,-460.0,0.0001992,2]
[367991477,1750985442473,-430.0,0.0001992,2]
[367991478,1750985442482,-398.91175322,0.0001992,2]
[367991479,1750985442491,-460.0,0.0001992,2]
[367991480,1750985442501,-305.12601992,0.0001992,2]
[367991481,1750985442513,-460.0,0.0001992,2]
[367991482,1750985442523,-460.0,0.0001992,2]
[367991483,1750985442534,-460.0,0.0001992,2]
[367991484,1750985442544,-460.0,0.0001992,2]
[367991485,1750985442554,-343.78969584,0.0001992,2]
[367991486,1750985442563,-460.0,0.0001992,2]
[367991487,1750985442573,-409.70017524,0.0001992,2]
[367991488,1750985442582,-460.0,0.0001992,2]
[367991489,1750985442591,-460.0,0.0001992,2]
[367991490,1750985442600,-597.69170077,0.00019921,2]
[367991491,1750985442609,-460.0,0.00019921,2]
[367991492,1750985442619,-417.18234589,0.00019921,2]
[367991493,1750985442628,-460.0,0.00019921,2]
[367991494,1750985442637,-460.0,0.00019921,2]
[367991495,1750985442647,-550.59,0.00019921,2]
[367991496,1750985442656,-460.0,0.00019921,2]
[367991497,1750985442665,-615.81,0.00019921,2]
[367991498,1750985442675,-6377.11,0.00019921,2]
[367991499,1750985442685,-605.53,0.00019921,2]
[367991500,1750985442694,-1340.26,0.00019921,2]
[367991501,1750985442703,-460.0,0.00019921,2]
[367991502,1750985442712,-400.00302125,0.00019921,2]
[367991503,1750985442722,-443.42320512,0.00019921,2]
[367991504,1750985442731,-460.0,0.00019921,2]
[367991505,1750985442740,-534.1,0.00019921,2]
[367991506,1750985442750,-460.0,0.00019921,2]
[367991507,1750985442759,-2161.84,0.00019921,2]
[367991508,1750985442768,-884.85,0.00019921,2]
[367991509,1750985442777,-1202.58,0.00019921,2]
[367991510,1750985442787,-749.5,0.00019921,2]
[367991511,1750985442796,-481.04,0.00019921,2]
[367991512,1750985442805,-1182.79,0.00019921,2]
[367991513,1750985442814,-463.79,0.00019921,2]
[367991514,1750985442823,-2742.58,0.00019921,2]
[367991515,1750985442836,-1047.15,0.00019921,2]
[367991516,1750985442845,-460.0,0.00019922,2]
[367991517,1750985442854,-460.0,0.00019922,2]
[367991518,1750985442864,-873.68,0.00019922,2]
[367991519,1750985442873,-460.0,0.00019923,2]
[367991520,1750985442882,-535.82,0.00019923,2]
[367991521,1750985442892,-1308.61,0.00019923,2]
[367991522,1750985442902,-460.0,0.00019923,2]
[367991523,1750985442915,-693.75,0.00019923,2]
[367991524,1750985442925,-563.93,0.00019923,2]
[367991525,1750985442935,-1933.82,0.00019923,2]
[367991526,1750985442944,-1747.35,0.00019923,2]
[367991527,1750985442953,-460.0,0.00019923,2]
[367991528,1750985442962,-460.0,0.00019923,2]
[367991529,1750985442972,-2047.33,0.00019923,2]
[367991530,1750985442981,-460.0,0.00019923,2]
[367991531,1750985442992,-415.32561581,0.00019973,2]
[367991532,1750985443002,-500.0,0.00019973,2]
[367991533,1750985443011,-496.66647297,0.00019973,2]
[367991534,1750985443021,-450.11997304,0.00019973,2]
[367991535,1750985443030,-500.0,0.00019973,2]
[367991537,1750985443040,-873.68,0.00019987,2]
[367991540,1750985443049,-873.68,0.00019987,2]
[367991541,1750985443058,-873.68,0.00019987,2]
[367991542,1750985443068,-873.68,0.00019987,2]
[367991543,1750985443077,-873.68,0.00019987,2]
[367991544,1750985443087,-460.0,0.00019988,2]
[367991545,1750985443096,-460.0,0.00019988,2]
[367991546,1750985443105,-460.0,0.00019988,2]
[367991547,1750985443115,-460.0,0.00019988,2]
[367991548,1750985443125,-231.34884954,0.00019988,2]
[367991549,1750985443135,-460.0,0.00019988,2]
[367991551,1750985443144,-460.0,0.00019988,2]
[367991552,1750985443154,-460.0,0.00019988,2]
[367991553,1750985443163,-460.0,0.00019988,2]
[367991554,1750985443173,-460.0,0.00019988,2]
[367991555,1750985443183,-588.65306472,0.00019988,2]
[367991556,1750985443192,-460.0,0.00019988,2]
[367991557,1750985443200,-460.0,0.00019988,2]
[367991558,1750985443210,-460.0,0.00019988,2]
[367991559,1750985443219,-460.0,0.00019988,2]
[367991560,1750985443229,-460.0,0.00019988,2]
[367991561,1750985443238,-460.0,0.00019988,2]
[367991562,1750985443247,-460.0,0.00019988,2]
[367991563,1750985443257,-460.0,0.00019988,2]
[367991564,1750985443267,-460.0,0.00019988,2]
[367991565,1750985443276,-460.0,0.00019988,2]
[367991566,1750985443286,-250.43642469,0.00019988,2]
[367991567,1750985443296,-460.0,0.00019988,2]
[367991569,1750985443305,-460.0,0.00019988,2]
[367991571,1750985443314,-460.0,0.00019988,2]
[367991573,1750985443324,-460.0,0.00019988,2]
[367991574,1750985443333,-460.0,0.00019988,2]
[367991575,1750985443342,-460.0,0.00019988,2]
[367991576,1750985443353,-209.14774874,0.00019988,2]
[367991577,1750985443362,-460.0,0.00019988,2]
[367991578,1750985443371,-460.0,0.00019988,2]
[367991579,1750985443381,-460.0,0.00019988,2]
[367991580,1750985443390,-460.0,0.00019988,2]
[367991581,1750985443399,-460.0,0.00019988,2]
[367991582,1750985443409,-253.19146181,0.00019988,2]
[367991583,1750985443418,-460.0,0.00019988,2]
[367991584,1750985443427,-460.0,0.00019988,2]
[367991585,1750985443437,-460.0,0.00019988,2]
[367991586,1750985443447,-460.0,0.00019988,2]
[367991587,1750985443457,-460.0,0.00019988,2]
[367991588,1750985443467,-460.0,0.00019988,2]
[367991589,1750985443476,-460.0,0.00019988,2]
[367991590,1750985443487,-460.0,0.00019988,2]
[367991591,1750985443497,-460.0,0.00019988,2]
[367991592,1750985443507,-460.0,0.00019988,2]
[367991593,1750985443517,-460.0,0.00019988,2]
[367991594,1750985443526,-468.90097437,0.00019988,2]
[367991595,1750985443535,-525.24545814,0.00019988,2]
[367991596,1750985443545,-460.0,0.00019988,2]
[367991598,1750985443555,-460.0,0.00019988,2]
[367991599,1750985443564,-460.0,0.00019988,2]
[367991602,1750985443574,-460.0,0.00019988,2]
[367991604,1750985443583,-460.0,0.00019988,2]
[367991605,1750985443592,-460.0,0.00019988,2]
[367991606,1750985443601,-460.0,0.00019988,2]
[367991607,1750985443611,-460.0,0.00019988,2]
[367991608,1750985443620,-460.0,0.00019988,2]
[367991609,1750985443629,-460.0,0.00019988,2]
[367991610,1750985443639,-460.0,0.00019988,2]
[367991611,1750985443648,-460.0,0.00019988,2]
[367991612,1750985443658,-460.0,0.00019988,2]
[367991613,1750985443668,-460.0,0.00019988,2]
[367991614,1750985443678,-460.0,0.00019988,2]
[367991615,1750985443687,-463.28305175,0.00019988,2]
[367991616,1750985443697,-460.0,0.00019988,2]
[367991617,1750985443706,-460.0,0.00019988,2]
[367991618,1750985443716,-460.0,0.00019988,2]
[367991619,1750985443725,-460.0,0.00019988,2]
[367991620,1750985443736,-460.0,0.00019988,2]
[367991621,1750985443745,-228.52,0.00019988,2]
[367991622,1750985443755,-447.42432569,0.00019988,2]
[367991623,1750985443764,-460.0,0.00019988,2]
[367991624,1750985443775,-460.0,0.00019988,2]
[367991625,1750985443785,-358.96505236,0.00019988,2]
[367991626,1750985443795,-460.0,0.00019988,2]
[367991627,1750985443805,-158.83148162,0.00019988,2]
[367991628,1750985443815,-625.43,0.00019988,2]
[367991629,1750985443826,-460.0,0.00019988,2]
[367991630,1750985443840,-460.0,0.00019988,2]
[367991631,1750985443849,-460.0,0.00019988,2]
[367991632,1750985443859,-487.96,0.00019988,2]
[367991633,1750985443868,-622.78,0.00019988,2]
[367991634,1750985443878,-460.0,0.00019988,2]
[367991635,1750985443887,-191.58917147,0.00019988,2]
[367991636,1750985443896,-460.0,0.00019988,2]
[367991637,1750985443905,-460.0,0.00019988,2]
[367991638,1750985443915,-460.0,0.00019988,2]
[367991639,1750985443925,-460.0,0.00019988,2]
[367991640,1750985443936,-460.0,0.00019988,2]
[367991641,1750985443945,-412.23047144,0.00019988,2]
[367991642,1750985443954,-460.0,0.00019988,2]
[367991643,1750985443964,-460.0,0.00019988,2]
[367991644,1750985443973,-460.0,0.00019988,2]
[367991645,1750985443982,-460.0,0.00019988,2]
[367991646,1750985443991,-460.0,0.00019988,2]
[367991647,1750985444001,-500.0,0.00019988,2]
[367991648,1750985444010,-460.0,0.00019988,2]
[367991649,1750985444020,-984.49,0.00019988,2]
[367991650,1750985444029,-460.0,0.00019988,2]
[367991651,1750985444039,-460.0,0.00019988,2]
[367991652,1750985444049,-460.0,0.00019988,2]
[367991653,1750985444058,-741.45,0.00019988,2]
[367991654,1750985444067,-460.0,0.00019988,2]
[367991655,1750985444076,-460.0,0.00019988,2]
[367991656,1750985444087,-483.21,0.00019988,2]
[367991657,1750985444097,-460.0,0.00019988,2]
[367991658,1750985444108,-460.0,0.00019988,2]
[367991659,1750985444118,-460.0,0.00019988,2]
[367991660,1750985444128,-460.0,0.00019988,2]
[367991661,1750985444138,-460.0,0.00019988,2]
[367991662,1750985444148,-460.0,0.00019988,2]
[367991663,1750985444157,-460.0,0.00019988,2]
[367991664,1750985444167,-460.0,0.00019988,2]
[367991665,1750985444177,-460.0,0.00019988,2]
[367991666,1750985444187,-460.0,0.00019988,2]
[367991667,1750985444196,-460.0,0.00019988,2]
[367991668,1750985444205,-460.0,0.00019988,2]
[367991669,1750985444214,-563.18776442,0.00019988,2]
[367991670,1750985444224,-460.0,0.00019988,2]
[367991671,1750985444234,-353.42500665,0.00019988,2]
[367991672,1750985444243,-460.0,0.00019988,2]
[367991673,1750985444253,-460.0,0.00019988,2]
[367991674,1750985444263,-460.0,0.00019988,2]
[367991675,1750985444273,-460.0,0.00019988,2]
[367991676,1750985444282,-709.52,0.00019988,2]
[367991677,1750985444291,-460.0,0.00019988,2]
[367991678,1750985444301,-460.0,0.00019988,2]
[367991679,1750985444310,-460.0,0.00019988,2]
[367991680,1750985444319,-460.0,0.00019988,2]
[367991681,1750985444328,-460.0,0.00019988,2]
[367991682,1750985444338,-460.0,0.00019988,2]